bitfinex-derivatives/quotes_ETHF0:USTF0_20251103
["timestamp","ask_amount","ask_price","bid_price","bid_amount"]
[1762203992213,1.24742,3608.3,3607.5,1.48781087]
[1762203992410,0.50119313,3607.8,3607.7,0.99188651]
[1762203992616,0.50119313,3607.8,3607.4,0.99188651]
[1762203992617,0.49907,3607.5,3607.4,0.99188651]
[1762203992920,0.49907,3607.5,3607.4,0.03048062]
[1762203993213,0.49923,3606.3,3606.2,1.48781087]
[1762203993421,0.49923,3606.3,3606.1,1.49076221]
[1762203993621,0.49929,3605.9,3605.6,1.48781087]
[1762203993811,0.49939,3605.2,3605.1,1.48781087]
[1762203994007,0.2799,3605.6,3604.9,1.48781087]
[1762203994208,0.77934,3604.8,3604.7,0.02774194]
[1762203994411,0.2799,3605.6,3604.7,0.02774194]
[1762203994613,0.28321936,3605.6,3605.1,0.49939]
[1762203994918,0.28321936,3605.6,3605.4,0.49934]
[1762203995114,0.28321936,3605.6,3605.0,1.48781087]
[1762203995310,0.00331936,3605.6,3605.4,0.49935]
[1762203995514,0.00331936,3605.6,3605.4,1.98716087]
[1762203995715,0.00331936,3605.6,3605.4,0.49935]
[1762203995915,0.49936,3605.5,3605.2,1.48781087]
[1762203996118,0.50265936,3605.6,3605.2,0.49938]
[1762203996517,0.00331936,3605.6,3605.3,1.98717087]
[1762203997020,0.78255936,3605.6,3605.2,0.49938]
[1762203997218,0.49935,3605.5,3605.2,0.49938]
[1762203997715,0.28321936,3605.6,3605.0,1.48781087]
[1762203997917,0.28321936,3605.6,3604.8,1.98724087]
[1762203998321,0.4994,3605.1,3604.8,1.98724087]
[1762203998722,0.49941,3605.1,3604.9,1.48781087]
[1762203998912,0.28321936,3605.6,3604.9,1.48781087]
[1762203999227,0.49918,3606.7,3605.6,1.24832]
[1762203999524,1.24772,3607.4,3606.1,1.48686427]
[1762203999525,0.4992,3606.6,3606.1,1.48686427]
[1762203999826,10.598,3607.5,3606.1,1.48686427]
[1762204000017,1.24761,3607.8,3606.2,1.48686427]
[1762204000213,0.4992,3606.6,3606.2,1.48686427]
[1762204000417,0.49912,3607.1,3606.3,1.48686427]
[1762204000624,0.28297487,3607.2,3606.2,1.48686427]
[1762204000820,0.49917,3606.8,3606.5,0.4992]
[1762204001013,1.24782,3607.1,3606.2,1.98610427]
[1762204001215,1.24785,3607.0,3606.1,1.48686427]
[1762204001419,1.24785,3607.0,3606.1,1.98612427]
[1762204001718,0.49923,3606.3,3606.1,1.48686427]
[1762204001920,0.28297487,3607.2,3604.9,4.69414225]
[1762204001921,0.49917,3606.8,3605.9,1.48686427]
[1762204002112,0.28297487,3607.2,3605.5,3.18719559]
[1762204002113,0.28297487,3607.2,3606.1,0.49925]
[1762204002317,10.597,3607.1,3606.1,0.49925]
[1762204002722,0.49924,3606.3,3606.1,0.49925]
[1762204002923,0.49925,3606.2,3606.0,1.48686427]
[1762204003122,0.49925,3606.2,3606.0,1.98613427]
[1762204003319,0.28297487,3607.2,3606.0,1.48686427]
[1762204003513,1.53075487,3607.2,3606.1,1.48686427]
[1762204003821,0.49923,3606.3,3606.1,1.48686427]
[1762204004818,0.49929,3605.9,3605.8,1.48686427]
[1762204005020,0.49932,3605.7,3605.5,1.48686427]
[1762204005724,0.49936,3605.4,3605.3,1.48686427]
[1762204006320,0.49933,3605.6,3605.4,0.49935]
[1762204006513,1.24809,3606.3,3605.5,0.49934]
[1762204006725,0.49934,3605.5,3605.3,1.48686427]
[1762204006926,0.49937,3605.3,3605.2,1.48686427]
[1762204007926,0.49937,3605.3,3605.1,1.48686427]
[1762204008130,0.49937,3605.3,3605.2,1.48686427]
[1762204008424,0.2651,3605.6,3605.0,1.48686427]
[1762204008425,0.9382,3605.1,3605.0,1.48686427]
[1762204008724,0.9382,3605.1,3604.7,0.02999828]
[1762204008725,0.7039,3604.8,3604.7,0.02999828]
[1762204008922,0.49943,3604.9,3604.7,0.02999828]
[1762204009129,0.49943,3604.9,3604.7,0.52944828]
[1762204009518,0.2651,3605.6,3604.9,1.24854]
[1762204009722,0.2799,3606.4,3605.7,0.49931]
[1762204009723,0.49928,3606.0,3605.7,0.49931]
[1762204010021,0.2799,3606.4,3605.5,1.48686427]
[1762204010321,1.53076487,3607.2,3605.9,1.48686427]
[1762204010521,0.49914,3607.0,3606.8,0.49915]
[1762204010720,0.49914,3607.0,3606.4,1.48686427]
[1762204010921,0.49912,3607.1,3606.8,0.49916]
[1762204011124,0.49914,3607.0,3606.8,0.49916]
[1762204011623,0.49916,3606.8,3606.5,1.48686427]
[1762204011828,0.49918,3606.7,3606.6,0.49919]
[1762204012124,0.49918,3606.7,3606.6,1.48686427]
[1762204012317,0.49916,3606.9,3606.6,0.49919]
[1762204012522,0.28297487,3607.2,3606.6,0.49919]
[1762204013227,0.28297487,3607.2,3606.5,1.48686427]
[1762204013426,0.49914,3607.0,3606.5,1.48686427]
[1762204013635,1.53077487,3607.2,3606.6,1.48686427]
[1762204013823,0.49919,3606.7,3606.5,1.48686427]
[1762204014022,0.49919,3606.7,3606.5,1.98606427]
[1762204014226,0.28297487,3607.2,3605.9,1.24822]
[1762204014227,0.28297487,3607.2,3606.6,1.98605427]
[1762204014424,0.49917,3606.8,3606.6,1.48686427]
[1762204015523,0.49918,3606.7,3606.6,1.48686427]
[1762204015724,0.49919,3606.6,3606.5,1.48686427]
[1762204015919,0.49918,3606.7,3606.5,1.48686427]
[1762204016120,0.49918,3606.7,3606.6,1.48686427]
[1762204016329,0.28297487,3607.2,3606.6,1.48686427]
[1762204016535,0.00307487,3607.2,3607.0,0.49913]
[1762204016722,0.00307487,3607.2,3606.2,1.24811]
[1762204016723,0.4388,3606.7,3606.6,1.48686427]
[1762204017030,0.49918,3606.7,3606.6,1.98605427]
[1762204017227,0.49918,3606.7,3606.6,1.48686427]
[1762204018633,0.49923,3606.3,3606.2,1.48686427]
[1762204019034,0.2651,3607.1,3606.0,1.24819]
[1762204019230,0.2651,3608.0,3607.1,0.49912]
[1762204019437,1.51262,3608.0,3607.1,0.49912]
[1762204019734,0.49909,3607.4,3607.1,0.49912]
[1762204019929,1.51262,3608.0,3607.1,0.49912]
[1762204019930,0.2651,3608.0,3607.1,0.49912]
[1762204020131,0.2651,3608.0,3607.1,0.4322]
[1762204020327,1.20302,3607.1,3607.0,1.48794015]
[1762204020523,0.93794,3607.0,3606.9,1.48794015]
[1762204020831,0.49915,3606.9,3606.8,1.48794015]
[1762204021031,0.2651,3607.1,3606.8,1.48794015]
[1762204021326,0.49915,3606.9,3606.8,1.48794015]
[1762204021521,0.2651,3607.1,3606.7,1.48830797]
[1762204021934,0.49916,3606.8,3606.7,1.48830797]
[1762204022323,0.49919,3606.6,3606.4,2.43807559]
[1762204022528,0.49919,3606.6,3606.0,2.47849065]
[1762204022529,0.49921,3606.5,3606.2,0.49925]
[1762204022931,0.49921,3606.5,3606.3,0.49923]
[1762204023434,0.49925,3606.2,3606.1,1.93885559]
[1762204023638,0.4388,3605.8,3605.7,1.93885559]
[1762204023933,0.4388,3605.5,3605.4,0.99327715]
[1762204024228,0.4388,3605.2,3605.1,0.99327715]
[1762204024432,0.4388,3604.9,3604.8,0.99327715]
[1762204024732,11.08443,3604.9,3604.7,1.51966956]
[1762204025036,10.585,3604.9,3604.8,0.99341023]
[1762204025228,0.93824,3604.8,3604.7,1.02340851]
[1762204025423,11.52224,3604.8,3604.7,1.02340851]
[1762204025634,11.52224,3604.8,3604.7,0.02999828]
[1762204025826,0.93832,3604.2,3604.1,0.99341023]
[1762204026131,0.93838,3603.8,3603.6,0.99341023]
[1762204026327,0.2651,3604.3,3603.7,0.99341023]
[1762204026533,0.93839,3603.7,3603.6,0.99341023]
[1762204026733,0.4388,3603.4,3603.3,0.99341023]
[1762204026933,0.93845,3603.4,3603.2,0.99341023]
[1762204027129,0.93845,3603.4,3603.3,0.00322004]
[1762204027535,7.87605,3603.4,3603.3,0.00322004]
[1762204027736,0.93845,3603.4,3603.3,0.00322004]
[1762204027931,0.49972,3602.8,3602.6,0.99341023]
[1762204028135,0.49972,3602.8,3601.4,3.44560225]
[1762204028136,0.49987,3601.7,3601.6,0.99341023]
[1762204028331,0.49993,3601.3,3601.1,0.99341023]
[1762204028532,10.584,3601.8,3600.9,1.48967128]
[1762204028533,0.2649,3601.6,3600.9,0.99341023]
[1762204028834,0.2649,3601.6,3600.8,0.99341023]
[1762204029032,0.462,3601.7,3601.2,0.49993]
[1762204029233,0.462,3601.7,3600.8,0.27526234]
[1762204029438,0.462,3601.7,3600.8,0.77525234]
[1762204029641,0.49991,3601.5,3600.9,0.49997]
[1762204029835,0.49997,3601.0,3600.8,0.00356234]
[1762204030032,0.49997,3601.0,3600.8,0.50355234]
[1762204030033,0.00266991,3601.0,3600.8,0.50355234]
[1762204030438,0.00266991,3601.0,3600.8,0.00356234]
[1762204030736,0.49998,3600.9,3600.8,0.00356234]
[1762204031334,0.00266991,3601.0,3600.8,0.00356234]
[1762204031538,10.585,3600.9,3600.8,0.00356234]
[1762204031835,0.00266991,3601.0,3600.8,0.50355234]
[1762204032135,0.00266991,3601.0,3600.8,0.00356234]
[1762204033041,0.50264991,3601.0,3600.8,0.00356234]
[1762204033240,0.00266991,3601.0,3600.8,0.00356234]
[1762204033442,0.50263991,3601.0,3600.8,0.00356234]
[1762204033737,0.4488,3599.8,3599.7,0.02778048]
[1762204034050,10.586,3599.8,3599.7,0.02778048]
[1762204034342,0.50025,3599.0,3598.4,0.50032]
[1762204034538,10.586,3599.0,3597.7,0.22086171]
[1762204034739,11.83666,3598.9,3597.7,0.00259938]
[1762204034943,0.50027,3598.9,3598.4,0.50032]
[1762204035140,0.50031,3598.6,3597.7,0.00259938]
[1762204035437,10.586,3598.8,3597.7,0.00259938]
[1762204035438,1.25073,3598.7,3597.7,0.00259938]
[1762204035640,0.50037,3598.2,3597.7,0.50301938]
[1762204035841,0.50332725,3598.2,3597.8,0.5004]
[1762204036033,0.00295725,3598.2,3598.0,0.50038]
[1762204036636,0.50331725,3598.2,3597.7,0.00259938]
[1762204037137,0.50041,3597.9,3597.7,0.00259938]
[1762204037348,10.588,3597.8,3597.7,0.00259938]
[1762204037543,0.50054,3597.0,3596.0,0.2524]
[1762204037839,0.2705,3597.6,3596.3,1.25155]
[1762204038140,0.00295725,3598.2,3597.5,0.50044]
[1762204038346,0.00295725,3598.2,3597.8,0.5004]
[1762204038540,0.00295725,3598.2,3598.0,0.50038]
[1762204038739,0.50331725,3598.2,3597.8,0.002455]
[1762204038939,0.00295725,3598.2,3598.0,0.50038]
[1762204039139,0.00295725,3598.2,3597.9,0.50039]
[1762204039338,0.00295725,3598.2,3597.8,0.002455]
[1762204039339,0.50037,3598.1,3597.8,0.002455]
[1762204040043,0.50039,3598.0,3597.8,0.002455]
[1762204041238,17.5388,3597.9,3597.8,0.002455]
[1762204041436,10.59,3597.9,3597.8,0.002455]
[1762204041641,0.50057,3596.7,3596.2,0.50062]
[1762204041941,0.00295725,3598.2,3596.0,0.2524]
[1762204042142,0.50331725,3598.2,3597.7,0.50042]
[1762204042350,0.00295725,3598.2,3596.8,0.116]
[1762204042540,1.25093,3598.1,3596.8,0.116]
[1762204042745,0.00295725,3598.2,3597.1,0.5005]
[1762204042942,0.50049,3597.3,3596.9,0.50053]
[1762204043141,0.50049,3597.3,3597.0,0.50052]
[1762204043340,0.00295725,3598.2,3596.8,0.00349192]
[1762204043542,1.25098,3598.0,3596.9,0.50052]
[1762204043737,1.25094,3598.1,3596.8,0.00349192]
[1762204043948,0.50053,3597.0,3596.8,0.00349192]
[1762204044343,0.2705,3597.6,3596.8,0.00349192]
[1762204044544,0.00295725,3598.2,3596.8,0.00349192]
[1762204044748,1.594,3598.1,3596.9,1.25134]
[1762204044948,0.00295725,3598.2,3597.9,0.50039]
[1762204045148,0.50039,3598.0,3596.8,0.11949192]
[1762204045348,0.00295725,3598.2,3597.1,1.25128]
[1762204045544,0.00295725,3598.2,3597.3,1.25121]
[1762204045848,0.00295725,3598.2,3597.1,1.25125]
[1762204046045,0.50039,3598.0,3597.7,0.50042]
[1762204046241,0.50044,3597.6,3597.3,0.50048]
[1762204046446,0.50046,3597.5,3597.3,0.50048]
[1762204046744,0.00295725,3598.2,3596.9,1.25135]
[1762204047045,1.25097,3598.0,3596.9,0.50053]
[1762204047248,0.50043,3597.7,3597.3,0.50047]
[1762204047441,0.50046,3597.5,3597.3,0.50047]
[1762204047747,1.25097,3598.0,3596.8,0.11949192]
[1762204047950,1.25094,3598.1,3596.8,1.37086192]
[1762204048153,1.25093,3598.1,3597.4,0.50046]
[1762204048346,10.593,3598.1,3597.4,0.50047]
[1762204048542,0.50044,3597.6,3597.4,0.50047]
[1762204048742,10.593,3598.1,3596.8,0.11949192]
[1762204048942,0.2705,3597.6,3596.8,0.00349192]
[1762204049144,1.25114,3597.5,3596.8,0.00349192]
[1762204049352,0.50054,3596.9,3596.8,0.00349192]
[1762204049541,0.2705,3597.6,3596.9,0.50054]
[1762204049747,0.50052,3597.0,3596.8,0.00349192]
[1762204049941,0.50054,3596.9,3596.8,0.00349192]
[1762204050253,0.5007,3595.8,3595.4,0.50074]
[1762204050445,1.25146,3596.6,3595.6,0.50071]
[1762204050648,0.5007,3595.8,3595.2,0.2524]
[1762204050947,1.25157,3596.3,3595.4,0.50073]
[1762204051153,1.25157,3596.3,3595.2,0.2524]
[1762204051354,0.50063,3596.3,3595.4,1.25187]
[1762204051541,0.50066,3596.1,3595.8,0.50069]
[1762204051746,0.50066,3596.1,3595.9,0.50068]
[1762204051948,0.50061,3596.4,3596.1,0.50064]
[1762204052151,0.50064,3596.2,3595.9,0.50067]
[1762204052348,0.2705,3596.8,3595.7,1.25174]
[1762204052550,0.2705,3596.8,3596.4,0.50061]
[1762204052752,0.5005,3597.2,3597.0,0.50052]
[1762204052953,0.50053,3597.0,3596.7,0.50056]
[1762204053150,4.629,3597.4,3595.2,1.50661116]
[1762204053344,1.52191,3596.8,3595.2,0.25469116]
[1762204053550,0.50068,3595.9,3595.2,1.50661116]
[1762204053744,1.25149,3596.5,3595.8,0.50069]
[1762204053949,0.2705,3596.8,3595.5,1.25182]
[1762204054151,10.592,3596.6,3595.9,0.50067]
[1762204054651,0.50057,3596.7,3595.2,0.25469116]
[1762204054846,0.2705,3596.8,3595.2,1.50661116]
[1762204055049,0.50063,3596.3,3596.0,0.50066]
[1762204055250,0.50065,3596.1,3595.9,0.50068]
[1762204055444,0.50064,3596.2,3596.0,0.50066]
[1762204055852,1.2514,3596.8,3595.5,1.25181]
[1762204056058,1.2514,3596.8,3595.3,1.2519]
[1762204056059,1.25121,3597.3,3596.6,0.50058]
[1762204056352,2.50482725,3598.2,3596.1,1.25161]
[1762204056353,0.50039,3598.0,3597.2,1.25124]
[1762204056556,10.59495725,3598.2,3597.6,0.50043]
[1762204056748,0.50039,3598.0,3597.7,0.50042]
[1762204056953,0.00295725,3598.2,3597.7,0.50042]
[1762204057150,0.00295725,3598.2,3596.8,0.1158]
[1762204057351,0.50041,3597.8,3597.6,0.50043]
[1762204057550,0.50041,3597.8,3597.6,0.50044]
[1762204057952,0.00295725,3598.2,3597.7,0.50042]
[1762204058249,0.50041,3597.8,3597.6,0.50044]
[1762204058553,0.50041,3597.8,3596.5,1.49400023]
[1762204058554,0.50055,3596.8,3596.5,1.49400023]
[1762204058754,0.50055,3596.8,3596.5,0.50058]
[1762204059052,1.25119,3597.4,3596.7,0.50057]
[1762204059253,0.50054,3596.9,3596.7,0.50057]
[1762204059555,0.50061,3596.4,3596.2,0.99341023]
[1762204059754,0.50061,3596.4,3595.2,2.73318181]
[1762204059755,0.5007,3595.7,3595.5,0.99341023]
[1762204060055,0.5007,3595.7,3595.2,0.00229116]
[1762204060056,0.50076,3595.3,3595.2,0.00229116]
[1762204060255,0.50076,3595.3,3593.5,2.47849065]
[1762204060256,0.27953875,3595.3,3594.2,0.99341023]
[1762204060446,0.50082,3594.9,3593.8,0.99341023]
[1762204060847,0.50082,3594.9,3594.5,0.50086]
[1762204061055,0.50314162,3595.3,3593.9,2.24580023]
[1762204061356,0.00237162,3595.3,3595.1,0.50079]
[1762204061754,1.25143,3596.7,3595.4,0.50074]
[1762204061954,0.25851537,3596.6,3595.8,0.50068]
[1762204062251,1.25153,3596.4,3595.0,0.99341023]
[1762204062447,0.50077,3595.3,3595.0,0.99341023]
[1762204062649,0.00329973,3595.3,3594.7,1.02467431]
[1762204062846,0.00329973,3595.3,3594.8,0.99341023]
[1762204063045,0.00329973,3595.3,3595.0,0.5008]
[1762204063250,0.00329973,3595.3,3594.7,0.03126408]
[1762204063251,0.00329973,3595.3,3595.1,0.50078]
[1762204063445,0.00329973,3595.3,3594.9,0.99341023]
[1762204063853,0.50078,3595.2,3594.9,0.99341023]
[1762204064054,0.50406973,3595.3,3594.8,0.99341023]
[1762204064250,0.50081,3595.0,3594.8,0.99341023]
[1762204064551,0.50081,3595.0,3594.7,0.03126408]
[1762204065151,0.00329973,3595.3,3594.8,0.50082]
[1762204065357,0.00329973,3595.3,3594.7,0.53209408]
[1762204065558,0.00329973,3595.3,3594.7,0.03126408]
[1762204065760,0.00329973,3595.3,3595.1,0.50078]
[1762204066158,0.00329973,3595.3,3595.0,0.5008]
[1762204066365,0.00329973,3595.3,3594.8,0.99341023]
[1762204066366,0.00329973,3595.3,3595.1,0.50078]
[1762204066658,3.532,3596.7,3595.7,0.50069]
[1762204066859,0.25909366,3596.6,3596.0,0.50066]
[1762204067054,0.50066,3596.1,3595.6,0.50071]
[1762204067257,0.50068,3595.9,3595.4,0.50074]
[1762204067456,0.50068,3595.9,3595.3,1.49363627]
[1762204067655,0.50309043,3595.9,3595.3,1.49363627]
[1762204067854,0.00241043,3595.9,3595.7,0.5007]
[1762204068259,0.00241043,3595.9,3595.3,0.99287627]
[1762204068861,0.00241043,3595.9,3595.7,0.5007]
[1762204069256,0.00241043,3595.9,3595.7,1.49357627]
[1762204069450,0.50058,3596.6,3595.7,9.69424128]
[1762204069651,0.50056,3596.8,3596.4,0.5006]
[1762204069856,0.50056,3596.8,3596.5,0.50059]
[1762204070054,13.47962152,3598.8,3596.3,0.99329936]
[1762204070356,1.25116,3597.5,3596.4,0.5006]
[1762204070556,0.50045,3597.6,3596.6,0.50058]
[1762204070757,0.50053,3597.0,3596.6,0.50058]
[1762204070951,0.50054,3596.9,3596.5,0.50058]
[1762204071154,0.50055,3596.8,3596.5,0.50058]
[1762204072160,0.50059,3596.6,3596.4,0.99329936]
[1762204072354,0.50059,3596.6,3596.3,0.99329936]
[1762204072554,0.50059,3596.6,3596.3,1.49390936]
[1762204072760,0.50056,3596.8,3596.4,1.49389936]
[1762204072956,0.207,3597.7,3596.4,0.99329936]
[1762204073161,0.50049,3597.3,3596.9,0.50053]
[1762204073464,1.25103,3597.9,3597.0,0.50052]
[1762204073865,1.25103,3597.9,3596.7,0.99329936]
[1762204074167,0.50047,3597.4,3597.1,0.50051]
[1762204074361,10.8291113,3598.2,3596.7,0.99329936]
[1762204074362,10.8291113,3598.2,3596.8,1.48698]
[1762204074564,0.24098826,3598.1,3596.8,1.22889936]
[1762204074763,12.0800413,3598.2,3597.3,0.50048]
[1762204074960,0.24099462,3598.1,3597.3,0.0028426]
[1762204075159,0.0020113,3598.2,3598.0,0.50038]
[1762204075961,0.0020113,3598.2,3598.0,1.49367936]
[1762204076158,0.5023713,3598.2,3598.0,0.99329936]
[1762204076358,0.50039,3598.0,3597.6,0.50044]
[1762204076563,0.0020113,3598.2,3597.6,1.49373936]
[1762204076758,0.50041,3597.8,3597.6,1.49373936]
[1762204076964,0.0020113,3598.2,3597.7,0.50042]
[1762204077159,0.0020113,3598.2,3597.6,0.99329936]
[1762204077361,0.50043,3597.7,3597.6,0.99329936]
[1762204077668,0.50043,3597.7,3597.3,0.0028426]
[1762204077669,0.50047,3597.4,3597.3,0.0028426]
[1762204077869,0.0020113,3598.2,3597.3,0.0028426]
[1762204078165,0.5004,3597.9,3597.6,0.50043]
[1762204078462,0.5004,3598.0,3597.5,0.99329936]
[1762204078664,0.0020113,3598.2,3597.7,0.50043]
[1762204078867,0.50041,3597.8,3597.5,0.50045]
[1762204079461,0.50043,3597.7,3597.5,0.50045]
[1762204079660,0.50044,3597.6,3597.4,0.99329936]
[1762204079869,0.50042,3597.8,3597.5,0.50045]
[1762204080071,0.0020113,3598.2,3597.6,0.50044]
[1762204080368,0.50046,3597.5,3597.3,0.0028426]
[1762204080562,1.25097,3598.0,3597.3,0.0028426]
[1762204080563,0.50047,3597.4,3597.3,0.0028426]
[1762204080769,0.50039,3598.0,3597.3,0.0028426]
[1762204080968,0.50047,3597.4,3597.3,0.0028426]
[1762204081174,1.25097,3598.0,3597.3,0.0028426]
[1762204081367,0.2445,3598.4,3597.3,0.0028426]
[1762204081672,0.2445,3598.4,3597.3,0.99614196]
[1762204081673,1.25085,3598.4,3597.3,0.99614196]
[1762204081868,1.2507,3598.8,3597.3,0.99614196]
[1762204082077,0.50032,3598.5,3598.1,0.50037]
[1762204082367,0.50035,3598.3,3598.1,0.50037]
[1762204082570,1.25043,3599.6,3598.1,0.50037]
[1762204082769,1.25033,3599.9,3598.5,1.25078]
[1762204082975,1.25025,3600.1,3599.3,0.5002]
[1762204082976,0.50017,3599.6,3599.3,0.5002]
[1762204083474,0.50018,3599.5,3599.2,0.50022]
[1762204083681,1.49478,3600.0,3598.6,0.99329936]
[1762204083864,1.25339763,3599.5,3598.6,0.99329936]
[1762204084172,0.50039,3598.0,3597.8,0.99329936]
[1762204084473,0.50036,3598.2,3597.9,1.24373771]
[1762204084677,0.50038,3598.1,3597.9,0.74333771]
[1762204084869,0.00294763,3599.5,3597.9,1.25099]
[1762204085076,0.50026,3598.9,3598.5,0.5003]
[1762204085574,0.00294763,3599.5,3599.3,0.5002]
[1762204085968,0.00294763,3599.5,3598.9,0.74291565]
[1762204086172,0.00294763,3599.5,3598.5,0.74291565]
[1762204086372,0.50022,3599.2,3598.7,0.50028]
[1762204086576,0.00294763,3599.5,3598.7,0.50028]
[1762204086977,0.50022,3599.2,3598.9,0.50025]
[1762204087175,0.50312763,3599.5,3599.2,0.50021]
[1762204087372,0.00294763,3599.5,3599.3,0.5002]
[1762204087773,0.00294763,3599.5,3599.2,0.50022]
[1762204087972,0.00294763,3599.5,3599.1,0.50022]
[1762204088176,0.00294763,3599.5,3599.3,0.5002]
[1762204088378,0.50003,3600.6,3600.2,0.50007]
[1762204088571,0.50008,3600.2,3599.7,1.2416358]
[1762204088882,0.50011,3600.0,3599.7,0.50015]
[1762204089176,0.2445,3600.9,3599.4,0.7414858]
[1762204089177,0.50004,3600.5,3599.4,0.7414858]
[1762204089384,0.50005,3600.4,3600.1,0.50009]
[1762204089576,0.00330311,3600.5,3599.6,0.7414858]
[1762204089778,0.00330311,3600.5,3599.7,0.7414858]
[1762204089978,0.00330311,3600.5,3600.3,0.50006]
[1762204092177,0.00330311,3600.5,3600.2,0.7414858]
[1762204092380,0.50005,3600.4,3600.1,1.2415758]
[1762204092579,0.50005,3600.4,3600.1,0.50009]
[1762204092879,3.11e-06,3600.5,3600.4,0.50005]
[1762204093583,3.11e-06,3600.5,3600.4,7.44325]
[1762204093884,0.49987,3601.8,3601.4,0.49991]
[1762204094082,0.49987,3601.8,3601.3,0.49992]
[1762204094274,0.49987,3601.8,3600.4,1.9916158]
[1762204094275,0.49988,3601.7,3601.5,0.4999]
[1762204094479,3.925,3602.1,3601.5,0.4999]
[1762204094480,0.49986,3601.9,3601.5,0.4999]
[1762204094683,1.24947,3602.4,3601.3,0.49991]
[1762204094981,1.24951,3602.2,3601.2,0.49994]
[1762204095181,0.4998,3602.3,3601.4,0.49991]
[1762204095382,0.00336623,3602.4,3601.9,0.49984]
[1762204095583,0.00336623,3602.4,3602.2,0.4998]
[1762204095876,0.4999,3601.5,3600.8,0.9737858]
[1762204096081,7.15786623,3602.4,3601.0,0.49997]
[1762204096082,1.24959,3602.0,3601.0,0.49997]
[1762204096285,0.49992,3601.4,3600.8,0.2323]
[1762204096481,1.24955,3602.1,3600.8,0.2323]
[1762204096682,0.49991,3601.5,3601.1,0.49995]
[1762204096889,0.49991,3601.5,3601.2,0.49994]
[1762204097088,1.24954,3602.2,3600.8,0.23522907]
[1762204097287,0.49991,3601.4,3601.2,0.49994]
[1762204097587,1.24965,3601.8,3601.0,0.49997]
[1762204097786,0.49993,3601.3,3601.0,0.49997]
[1762204098382,0.21786623,3602.4,3600.8,0.23522907]
[1762204098591,0.49995,3601.2,3600.9,0.49998]
[1762204098888,0.49995,3601.2,3601.0,0.49997]
[1762204099084,0.49992,3601.4,3601.1,0.49995]
[1762204099590,1.24967,3601.8,3600.8,0.23522907]
[1762204099788,0.49994,3601.3,3600.8,0.23522907]
[1762204100485,0.49995,3601.2,3600.8,0.23522907]
[1762204100788,0.49995,3601.2,3601.0,0.49995]
[1762204100989,0.49995,3601.2,3601.1,0.49995]
[1762204101189,0.49991,3601.5,3600.9,1.24995]
[1762204101485,0.49991,3601.5,3600.8,0.23522907]
[1762204101486,0.49993,3601.3,3600.8,0.23522907]
[1762204101785,1.24952,3602.2,3600.9,1.24996]
[1762204101988,1.24952,3602.2,3600.8,1.48521907]
[1762204102287,0.21786623,3602.4,3600.8,0.23522907]
[1762204102288,1.24979,3601.4,3600.8,0.23522907]
[1762204102493,0.49998,3601.0,3600.8,0.50290907]
[1762204102890,1.24971,3601.7,3600.8,0.00292907]
[1762204103188,2.49852,3603.0,3601.0,1.24993]
[1762204103385,0.00336623,3602.4,3601.8,0.49984]
[1762204103586,0.49988,3601.7,3601.4,0.4999]
[1762204103786,0.49988,3601.7,3601.1,1.24989]
[1762204103988,0.49988,3601.7,3601.6,0.49989]
[1762204104588,0.21786623,3602.4,3601.1,1.24989]
[1762204104589,0.49986,3601.8,3601.7,0.49987]
[1762204104789,0.49986,3601.8,3601.5,0.49989]
[1762204105188,0.49984,3602.0,3601.7,0.49987]
[1762204105496,1.24951,3602.2,3601.0,0.7414858]
[1762204105790,1.24951,3602.2,3601.5,0.49989]
[1762204105791,0.49987,3601.8,3601.5,0.49989]
[1762204105991,0.21786623,3602.4,3601.7,0.49986]
[1762204106184,1.24949,3602.3,3601.7,0.49986]
[1762204106385,1.24949,3602.3,3601.0,0.7414858]
[1762204106386,0.49989,3601.6,3601.0,0.7414858]
[1762204106590,0.49993,3601.3,3600.9,0.7414858]
[1762204106787,0.49993,3601.3,3601.0,0.49997]
[1762204106987,1.24977,3601.5,3600.8,0.74441487]
[1762204107188,0.86138,3600.9,3600.8,0.00292907]
[1762204109093,0.86138,3600.9,3600.8,9.07e-06]
[1762204109294,0.50013,3599.8,3599.6,0.7414858]
[1762204109487,0.50015,3599.7,3599.3,0.7414858]
[1762204109692,0.50015,3599.7,3599.3,1.2416858]
[1762204109990,1.25003,3600.7,3599.8,0.50013]
[1762204110193,1.25288366,3600.7,3599.8,0.0034708]
[1762204110390,0.50008,3600.2,3600.0,0.5001]
[1762204110595,0.00285366,3600.7,3599.9,0.50012]
[1762204111393,0.00285366,3600.7,3599.8,0.7449566]
[1762204111593,0.50005,3600.5,3600.3,0.50006]
[1762204111893,0.00285366,3600.7,3600.1,1.2415658]
[1762204112092,0.00285366,3600.7,3600.3,0.50006]
[1762204112294,0.50003,3600.6,3600.3,1.2415458]
[1762204112593,0.50004,3600.5,3600.4,0.7414858]
[1762204112799,0.50005,3600.4,3600.3,0.7414858]
[1762204113297,1.25007,3600.6,3600.0,0.99329936]
[1762204113498,0.82452,3599.9,3599.8,0.0034708]
[1762204113797,0.50012,3599.9,3599.8,0.0034708]
[1762204114702,1.2501,3600.5,3599.8,0.0034708]
[1762204114895,0.50011,3600.0,3599.8,0.5036008]
[1762204115202,0.50012,3599.9,3599.8,0.0034708]
[1762204115893,0.5001,3600.1,3599.8,0.5036108]
[1762204116201,0.50012,3599.9,3599.8,0.0034708]
[1762204116796,0.50009,3600.1,3599.9,0.50012]
[1762204116997,0.50012,3599.9,3599.8,0.99677016]
[1762204117201,3.824,3600.6,3599.9,0.50012]
[1762204117502,0.50009,3600.2,3599.9,1.4946015]
[1762204117700,0.50009,3600.1,3599.9,1.4946015]
[1762204118002,0.50011,3600.0,3599.9,0.9944815]
[1762204118201,0.50011,3600.0,3599.8,1.99327208]
[1762204118402,0.50012,3599.9,3599.8,1.49314208]
[1762204118595,0.50012,3599.9,3599.8,0.0034708]
[1762204119798,0.50012,3599.9,3599.8,1.49314208]
[1762204120199,0.50012,3599.9,3599.8,0.0034708]
[1762204120696,0.50012,3599.9,3599.8,0.9981085]
[1762204121096,1.25288366,3600.7,3599.8,0.9981085]